Workbook

Sheet Arkusz1
A1: month | B1: period | C1: t | D1: t2 | E1: t*y | F1: Y | G1: Y^ | H1: zi
A2: 11 | B2: 2017.11 | C2: 1 | D2: =C2^2 -> 1 | E2: =C2*F2 -> 1098 | F2: 1098 | G2: =$J$5+$J$6*C2 -> 4595.407676 | H2: =F2/G2 -> 0.2389341877
A3: 12 | B3: 2017.12 | C3: 2 | D3: =C3^2 -> 4 | E3: =C3*F3 -> 10866 | F3: 5433 | G3: =$J$5+$J$6*C3 -> 5233.24628 | H3: =F3/G3 -> 1.038170136 | I3: n | J3: 29 | L3: tTt | M3: =J3 -> 29 | N3: =C31 -> 435 | P3: tTy | Q3: =F31 -> 392229.296
A4: 01 | B4: 2018.01 | C4: 3 | D4: 9 | E4: 27599.226 | F4: 9199.742 | G4: 5871.084885 | H4: 1.566957757 | M4: =C31 -> 435 | N4: =D31 -> 8555 | Q4: =E31 -> 7178251.807
A5: 02 | B5: 2018.02 | C5: 4 | D5: 16 | E5: 14292 | F5: 3573 | G5: 6508.923489 | H5: 0.5489387002 | I5: a | J5: =MMULT(M6:N7,Q3:Q4) -> 3957.569071
A6: 03 | B6: 2018.03 | C6: 5 | D6: 25 | E6: 35364.17 | F6: 7072.834 | G6: 7146.762094 | H6: 0.989655722 | I6: b | J6: 637.8386044 | L6: (tTt)-1 | M6: =MINVERSE(M3:N4) -> 0.1453 | N6: -0.0074
A7: 04 | B7: 2018.04 | C7: 6 | D7: 36 | E7: 42134.4 | F7: 7022.4 | G7: 7784.600698 | H7: 0.9020886584 | M7: -0.0074 | N7: 0.0005
A8: 05 | B8: 2018.05 | C8: 7 | D8: 49 | E8: 104780.452 | F8: 14968.636 | G8: 8422.439302 | H8: 1.777232873 | O8: wskaźniki sezonowości
A9: 06 | B9: 2018.06 | C9: 8 | D9: 64 | E9: 85992 | F9: 10749 | G9: 9060.277907 | H9: 1.18638745 | K9: 01 | L9: z1 | M9: =(H4+H16+H28)/3 -> 1.15 | N9: s1 | O9: =M9/$M$22 -> 1.14 | R9: period | S9: t | T9: Prognoza
A10: 07 | B10: 2018.07 | C10: 9 | D10: 81 | E10: 32085 | F10: 3565 | G10: 9698.116511 | H10: 0.367597151 | K10: 02 | L10: z2 | M10: =(H5+H17+H29)/3 -> 0.58 | N10: s2 | O10: 0.57 | R10: 2020.04 | S10: 30 | T10: =($J$5+$J$6*S10)*O9 -> 26329
A11: 08 | B11: 2018.08 | C11: 10 | D11: 100 | E11: 122590.58 | F11: 12259.058 | G11: 10335.95512 | H11: 1.186059524 | K11: 03 | L11: z3 | M11: 1.23 | N11: s3 | O11: 1.23 | R11: 2020.05 | S11: =S10+1 -> 31 | T11: 13597
A12: 09 | B12: 2018.09 | C12: 11 | D12: 121 | E12: 121132 | F12: 11012 | G12: 10973.79372 | H12: 1.003481593 | K12: 04 | L12: z4 | M12: =(H7+H19)/2 -> 1.19 | N12: s4 | O12: 1.19 | R12: 2020.06 | S12: =S11+1 -> 32 | T12: 29919
A13: 10 | B13: 2018.10 | C13: 12 | D13: 144 | E13: 168028.368 | F13: 14002.364 | G13: 11611.63232 | H13: 1.205891093 | K13: 05 | L13: z5 | M13: =(H8+H20)/2 -> 1.37 | N13: s5 | O13: 1.36 | R13: 2020.07 | S13: 33 | T13: 29713
A14: 11 | B14: 2018.11 | C14: 13 | D14: 169 | E14: 152891.856 | F14: 11760.912 | G14: 12249.47093 | H14: 0.9601159159 | K14: 06 | L14: z6 | M14: =(H9+H21)/2 -> 0.97 | N14: s6 | O14: 0.96 | R14: 2020.08 | S14: 34 | T14: 34866
A15: 12 | B15: 2018.12 | C15: 14 | D15: 196 | E15: 126683.438 | F15: 9048.817 | G15: 12887.30953 | H15: 0.7021494266 | K15: 07 | L15: z7 | M15: =(H10+H22)/2 -> 0.39 | N15: s7 | O15: 0.39 | R15: 2020.09 | S15: 35 | T15: 25241
A16: 01 | B16: 2019.01 | C16: 15 | D16: 225 | E16: 191221.5 | F16: 12748.1 | G16: 13525.14814 | H16: 0.9425479019 | K16: 08 | L16: z8 | M16: =(H11+H23)/2 -> 1.13 | N16: s8 | O16: 1.12 | R16: 2020.10 | S16: 36 | T16: 10459
A17: 02 | B17: 2019.02 | C17: 16 | D17: 256 | E17: 170818.736 | F17: 10676.171 | G17: 14162.98674 | H17: 0.7538078792 | K17: 09 | L17: z9 | M17: =(H12+H24)/2 -> 1.28 | N17: s9 | O17: 1.27 | R17: 2020.11 | S17: 37 | T17: 30898
A18: 03 | B18: 2019.03 | C18: 17 | D18: 289 | E18: 328693.997 | F18: 19334.941 | G18: 14800.82535 | H18: 1.306342082 | K18: 10 | L18: z10 | M18: =(H13+H25)/2 -> 1.08 | N18: s10 | O18: 1.07 | R18: 2020.12 | S18: 38 | T18: 35825
A19: 04 | B19: 2019.04 | C19: 18 | D19: 324 | E19: 413326.044 | F19: 22962.558 | G19: 15438.66395 | H19: 1.487341008 | K19: 11 | L19: z11 | M19: =(H2+H14+H26)/3 -> 0.99 | N19: s11 | O19: 0.98 | R19: 2021.01 | S19: 39 | T19: 30920
A20: 05 | B20: 2019.05 | C20: 19 | D20: 361 | E20: 292267.975 | F20: 15382.525 | G20: 16076.50256 | H20: 0.9568328028 | K20: 12 | L20: z12 | M20: =(H3+H15+H27)/3 -> 0.72 | N20: s12 | O20: 0.71 | R20: 2021.02 | S20: 40 | T20: 29004
A21: 06 | B21: 2019.06 | C21: 20 | D21: 400 | E21: 249015.72 | F21: 12450.786 | G21: 16714.34116 | H21: 0.7449163494 | R21: 2021.03 | S21: 41 | T21: 21499
A22: 07 | B22: 2019.07 | C22: 21 | D22: 441 | E22: 150744.426 | F22: 7178.306 | G22: 17352.17976 | H22: 0.4136832431 | L22: q = | M22: =AVERAGE(M9:M20) -> 1.005463287
A23: 08 | B23: 2019.08 | C23: 22 | D23: 484 | E23: 422940.166 | F23: 19224.553 | G23: 17990.01837 | H23: 1.068623311
A24: 09 | B24: 2019.09 | C24: 23 | D24: 529 | E24: 664752.555 | F24: 28902.285 | G24: 18627.85697 | H24: 1.551562536
A25: 10 | B25: 2019.10 | C25: 24 | D25: 576 | E25: 439518.864 | F25: 18313.286 | G25: 19265.69558 | H25: 0.9505644853
A26: 11 | B26: 2019.11 | C26: 25 | D26: 625 | E26: 880515.15 | F26: 35220.606 | G26: 19903.53418 | H26: 1.769565429
A27: 12 | B27: 2019.12 | C27: 26 | D27: 676 | E27: 220818 | F27: 8493 | G27: 20541.37279 | H27: 0.4134582478
A28: 01 | B28: 2020.01 | C28: 27 | D28: 729 | E28: 531615.798 | F28: 19689.474 | G28: 21179.21139 | H28: 0.9296603937
A29: 02 | B29: 2020.02 | C29: 28 | D29: 784 | E29: 259978.096 | F29: 9284.932 | G29: 21817.05 | H29: 0.4255814605
A30: 03 | B30: 2020.03 | C30: 29 | D30: 841 | E30: 916487.29 | F30: 31603.01 | G30: 22454.8886 | H30: 1.40739999
B31: Suma | C31: =SUM(C2:C30) -> 435 | D31: =SUM(D2:D30) -> 8555 | E31: 7178251.807 | F31: 392229.296 | G31: 281417.362 | H31: 1.393763673
